Workbook

Sheet Informācijas panelis
N1: =BudžetaNosaukums&" INTERAKTĪVAIS BUDŽETS" -> KALNIŅU ĢIMENE 2012. G. INTERAKTĪVAIS BUDŽETS
A3: ='diagrammas dati'!C38 -> 4,222 €
D5: ienākumi
A7: ='diagrammas dati'!C39 -> 7,936 €
D9: izdevumi
A11: =TEXT('diagrammas dati'!D40&'diagrammas dati'!C40,"# ###"" ""€") -> -3 714 €
D13: naudas plūsma

Sheet Budžets
C1: jan | D1: feb | E1: mar | F1: apr | G1: mai | H1: jūn | I1: jūl | J1: aug | K1: sep | L1: okt | M1: nov | N1: dec | O1: gads | P1: vid
B5: Sākuma bilance | C5: 1000
B6: Kopējie ienākumi | C6: =SUM(tabulaIenākumi[jan]) -> 4222 | D6: =SUM(tabulaIenākumi[feb]) -> 9033 | E6: =SUM(tabulaIenākumi[mar]) -> 4000 | F6: =SUM(tabulaIenākumi[apr]) -> 4045 | G6: =SUM(tabulaIenākumi[mai]) -> 9000 | H6: =SUM(tabulaIenākumi[jūn]) -> 1525 | I6: =SUM(tabulaIenākumi[jūl]) -> 1500 | J6: =SUM(tabulaIenākumi[aug]) -> 6500 | K6: =SUM(tabulaIenākumi[sep]) -> 4000 | L6: =SUM(tabulaIenākumi[okt]) -> 4000 | M6: =SUM(tabulaIenākumi[nov]) -> 9000 | N6: =SUM(tabulaIenākumi[dec]) -> 4000 | O6: =SUM(tabulaIenākumi[gads]) -> 60825 | P6: =O6/12 -> 5069
B7: Kopējie izdevumi | C7: =SUM(tabulaIzdevumuKategorija_01[jan],tabulaIzdevumuKategorija_02[jan],tabulaIzdevumuKategorija_03[jan],tabulaIzdevumuKategorija_04[jan],tabulaIzdevumuKategorija_05[jan],tabulaIzdevumuKategorija_06[jan],tabulaIzdevumuKategorija_07[jan],tabulaIzdevumuKategorija_08[jan],tabulaIzdevumuKategorija_09[jan],tabulaIzdevumuKategorija_10[jan],tabulaIzdevumuKategorija_11[jan],tabulaIzdevumuKategorija_12[jan],tabulaIzdevumuKategorija_13[jan],tabulaIzdevumuKategorija_14[jan],tabulaIzdevumuKategorija_16[jan]) -> 7936 | D7: =SUM(tabulaIzdevumuKategorija_01[feb],tabulaIzdevumuKategorija_02[feb],tabulaIzdevumuKategorija_03[feb],tabulaIzdevumuKategorija_04[feb],tabulaIzdevumuKategorija_05[feb],tabulaIzdevumuKategorija_06[feb],tabulaIzdevumuKategorija_07[feb],tabulaIzdevumuKategorija_08[feb],tabulaIzdevumuKategorija_09[feb],tabulaIzdevumuKategorija_10[feb],tabulaIzdevumuKategorija_11[feb],tabulaIzdevumuKategorija_12[feb],tabulaIzdevumuKategorija_13[feb],tabulaIzdevumuKategorija_14[feb],tabulaIzdevumuKategorija_16[feb]) -> 5243 | E7: =SUM(tabulaIzdevumuKategorija_01[mar],tabulaIzdevumuKategorija_02[mar],tabulaIzdevumuKategorija_03[mar],tabulaIzdevumuKategorija_04[mar],tabulaIzdevumuKategorija_05[mar],tabulaIzdevumuKategorija_06[mar],tabulaIzdevumuKategorija_07[mar],tabulaIzdevumuKategorija_08[mar],tabulaIzdevumuKategorija_09[mar],tabulaIzdevumuKategorija_10[mar],tabulaIzdevumuKategorija_11[mar],tabulaIzdevumuKategorija_12[mar],tabulaIzdevumuKategorija_13[mar],tabulaIzdevumuKategorija_14[mar],tabulaIzdevumuKategorija_16[mar]) -> 5933 | F7: =SUM(tabulaIzdevumuKategorija_01[apr],tabulaIzdevumuKategorija_02[apr],tabulaIzdevumuKategorija_03[apr],tabulaIzdevumuKategorija_04[apr],tabulaIzdevumuKategorija_05[apr],tabulaIzdevumuKategorija_06[apr],tabulaIzdevumuKategorija_07[apr],tabulaIzdevumuKategorija_08[apr],tabulaIzdevumuKategorija_09[apr],tabulaIzdevumuKategorija_10[apr],tabulaIzdevumuKategorija_11[apr],tabulaIzdevumuKategorija_12[apr],tabulaIzdevumuKategorija_13[apr],tabulaIzdevumuKategorija_14[apr],tabulaIzdevumuKategorija_16[apr]) -> 5858 | G7: =SUM(tabulaIzdevumuKategorija_01[mai],tabulaIzdevumuKategorija_02[mai],tabulaIzdevumuKategorija_03[mai],tabulaIzdevumuKategorija_04[mai],tabulaIzdevumuKategorija_05[mai],tabulaIzdevumuKategorija_06[mai],tabulaIzdevumuKategorija_07[mai],tabulaIzdevumuKategorija_08[mai],tabulaIzdevumuKategorija_09[mai],tabulaIzdevumuKategorija_10[mai],tabulaIzdevumuKategorija_11[mai],tabulaIzdevumuKategorija_12[mai],tabulaIzdevumuKategorija_13[mai],tabulaIzdevumuKategorija_14[mai],tabulaIzdevumuKategorija_16[mai]) -> 5468 | H7: =SUM(tabulaIzdevumuKategorija_01[jūn],tabulaIzdevumuKategorija_02[jūn],tabulaIzdevumuKategorija_03[jūn],tabulaIzdevumuKategorija_04[jūn],tabulaIzdevumuKategorija_05[jūn],tabulaIzdevumuKategorija_06[jūn],tabulaIzdevumuKategorija_07[jūn],tabulaIzdevumuKategorija_08[jūn],tabulaIzdevumuKategorija_09[jūn],tabulaIzdevumuKategorija_10[jūn],tabulaIzdevumuKategorija_11[jūn],tabulaIzdevumuKategorija_12[jūn],tabulaIzdevumuKategorija_13[jūn],tabulaIzdevumuKategorija_14[jūn],tabulaIzdevumuKategorija_16[jūn]) -> 5118 | I7: =SUM(tabulaIzdevumuKategorija_01[jūl],tabulaIzdevumuKategorija_02[jūl],tabulaIzdevumuKategorija_03[jūl],tabulaIzdevumuKategorija_04[jūl],tabulaIzdevumuKategorija_05[jūl],tabulaIzdevumuKategorija_06[jūl],tabulaIzdevumuKategorija_07[jūl],tabulaIzdevumuKategorija_08[jūl],tabulaIzdevumuKategorija_09[jūl],tabulaIzdevumuKategorija_10[jūl],tabulaIzdevumuKategorija_11[jūl],tabulaIzdevumuKategorija_12[jūl],tabulaIzdevumuKategorija_13[jūl],tabulaIzdevumuKategorija_14[jūl],tabulaIzdevumuKategorija_16[jūl]) -> 5743 | J7: =SUM(tabulaIzdevumuKategorija_01[aug],tabulaIzdevumuKategorija_02[aug],tabulaIzdevumuKategorija_03[aug],tabulaIzdevumuKategorija_04[aug],tabulaIzdevumuKategorija_05[aug],tabulaIzdevumuKategorija_06[aug],tabulaIzdevumuKategorija_07[aug],tabulaIzdevumuKategorija_08[aug],tabulaIzdevumuKategorija_09[aug],tabulaIzdevumuKategorija_10[aug],tabulaIzdevumuKategorija_11[aug],tabulaIzdevumuKategorija_12[aug],tabulaIzdevumuKategorija_13[aug],tabulaIzdevumuKategorija_14[aug],tabulaIzdevumuKategorija_16[aug]) -> 5353 | K7: =SUM(tabulaIzdevumuKategorija_01[sep],tabulaIzdevumuKategorija_02[sep],tabulaIzdevumuKategorija_03[sep],tabulaIzdevumuKategorija_04[sep],tabulaIzdevumuKategorija_05[sep],tabulaIzdevumuKategorija_06[sep],tabulaIzdevumuKategorija_07[sep],tabulaIzdevumuKategorija_08[sep],tabulaIzdevumuKategorija_09[sep],tabulaIzdevumuKategorija_10[sep],tabulaIzdevumuKategorija_11[sep],tabulaIzdevumuKategorija_12[sep],tabulaIzdevumuKategorija_13[sep],tabulaIzdevumuKategorija_14[sep],tabulaIzdevumuKategorija_16[sep]) -> 5983 | L7: =SUM(tabulaIzdevumuKategorija_01[okt],tabulaIzdevumuKategorija_02[okt],tabulaIzdevumuKategorija_03[okt],tabulaIzdevumuKategorija_04[okt],tabulaIzdevumuKategorija_05[okt],tabulaIzdevumuKategorija_06[okt],tabulaIzdevumuKategorija_07[okt],tabulaIzdevumuKategorija_08[okt],tabulaIzdevumuKategorija_09[okt],tabulaIzdevumuKategorija_10[okt],tabulaIzdevumuKategorija_11[okt],tabulaIzdevumuKategorija_12[okt],tabulaIzdevumuKategorija_13[okt],tabulaIzdevumuKategorija_14[okt],tabulaIzdevumuKategorija_16[okt]) -> 5943 | M7: =SUM(tabulaIzdevumuKategorija_01[nov],tabulaIzdevumuKategorija_02[nov],tabulaIzdevumuKategorija_03[nov],tabulaIzdevumuKategorija_04[nov],tabulaIzdevumuKategorija_05[nov],tabulaIzdevumuKategorija_06[nov],tabulaIzdevumuKategorija_07[nov],tabulaIzdevumuKategorija_08[nov],tabulaIzdevumuKategorija_09[nov],tabulaIzdevumuKategorija_10[nov],tabulaIzdevumuKategorija_11[nov],tabulaIzdevumuKategorija_12[nov],tabulaIzdevumuKategorija_13[nov],tabulaIzdevumuKategorija_14[nov],tabulaIzdevumuKategorija_16[nov]) -> 5058 | N7: =SUM(tabulaIzdevumuKategorija_01[dec],tabulaIzdevumuKategorija_02[dec],tabulaIzdevumuKategorija_03[dec],tabulaIzdevumuKategorija_04[dec],tabulaIzdevumuKategorija_05[dec],tabulaIzdevumuKategorija_06[dec],tabulaIzdevumuKategorija_07[dec],tabulaIzdevumuKategorija_08[dec],tabulaIzdevumuKategorija_09[dec],tabulaIzdevumuKategorija_10[dec],tabulaIzdevumuKategorija_11[dec],tabulaIzdevumuKategorija_12[dec],tabulaIzdevumuKategorija_13[dec],tabulaIzdevumuKategorija_14[dec],tabulaIzdevumuKategorija_16[dec]) -> 4958 | O7: =SUM(tabulaIzdevumuKategorija_01[gads],tabulaIzdevumuKategorija_02[gads],tabulaIzdevumuKategorija_03[gads],tabulaIzdevumuKategorija_04[gads],tabulaIzdevumuKategorija_05[gads],tabulaIzdevumuKategorija_06[gads],tabulaIzdevumuKategorija_07[gads],tabulaIzdevumuKategorija_08[gads],tabulaIzdevumuKategorija_09[gads],tabulaIzdevumuKategorija_10[gads],tabulaIzdevumuKategorija_11[gads],tabulaIzdevumuKategorija_12[gads],tabulaIzdevumuKategorija_13[gads],tabulaIzdevumuKategorija_14[gads],tabulaIzdevumuKategorija_16[gads]) -> 68594 | P7: =O7/12 -> 5716
B8: Neto ienākumi | C8: =C6-C7 -> -3714 | D8: =D6-D7 -> 3790 | E8: -1933 | F8: =F6-F7 -> -1813 | G8: 3532 | H8: -3593 | I8: -4243 | J8: 1147 | K8: -1983 | L8: -1943 | M8: 3942 | N8: -958 | O8: =O6-O7 -> -7769 | P8: -647
B9: KOPĒJĀ NAUDAS PLŪSMA | C9: =C5+C6-C7 -> -2714 | D9: =C9+D6-D7 -> 1076 | E9: =D9+E6-E7 -> -857 | F9: =E9+F6-F7 -> -2670 | G9: =F9+G6-G7 -> 862 | H9: =G9+H6-H7 -> -2731 | I9: =H9+I6-I7 -> -6974 | J9: =I9+J6-J7 -> -5827 | K9: =J9+K6-K7 -> -7810 | L9: =K9+L6-L7 -> -9753 | M9: =L9+M6-M7 -> -5811 | N9: =M9+N6-N7 -> -6769
B12: ienākumi
B13: Algas un dzeramnaudas | C13: 4000 | D13: 4000 | E13: 4000 | F13: 4000 | G13: 4000 | H13: 1000 | I13: 1000 | J13: 1000 | K13: 4000 | L13: 4000 | M13: 4000 | N13: 4000 | O13: =SUM(tabulaIenākumi[[#This Row],[jan]:[dec]]) -> 39000 | P13: =tabulaIenākumi[[#This Row],[gads]]/12 -> 3250
B14: Procentu ienākumi | C14: 222 | D14: 33 | F14: 45 | H14: 25 | O14: =SUM(tabulaIenākumi[[#This Row],[jan]:[dec]]) -> 325 | P14: =tabulaIenākumi[[#This Row],[gads]]/12 -> 27
B15: Dividendes | D15: 5000 | G15: 5000 | J15: 5000 | M15: 5000 | O15: =SUM(tabulaIenākumi[[#This Row],[jan]:[dec]]) -> 20000 | P15: =tabulaIenākumi[[#This Row],[gads]]/12 -> 1667
B16: atmaksas/kompensācijas | H16: 500 | I16: 500 | J16: 500 | O16: =SUM(tabulaIenākumi[[#This Row],[jan]:[dec]]) -> 1500 | P16: =tabulaIenākumi[[#This Row],[gads]]/12 -> 125
B17: Cits | O17: =SUM(tabulaIenākumi[[#This Row],[jan]:[dec]]) -> 0 | P17: =tabulaIenākumi[[#This Row],[gads]]/12 -> 0
B18: KOPĒJIE IENĀKUMI | C18: =SUM(tabulaIenākumi[jan]) -> 4222 | D18: =SUM(tabulaIenākumi[feb]) -> 9033 | E18: =SUM(tabulaIenākumi[mar]) -> 4000 | F18: =SUM(tabulaIenākumi[apr]) -> 4045 | G18: =SUM(tabulaIenākumi[mai]) -> 9000 | H18: =SUM(tabulaIenākumi[jūn]) -> 1525 | I18: =SUM(tabulaIenākumi[jūl]) -> 1500 | J18: =SUM(tabulaIenākumi[aug]) -> 6500 | K18: =SUM(tabulaIenākumi[sep]) -> 4000 | L18: =SUM(tabulaIenākumi[okt]) -> 4000 | M18: =SUM(tabulaIenākumi[nov]) -> 9000 | N18: =SUM(tabulaIenākumi[dec]) -> 4000 | O18: =SUM(tabulaIenākumi[gads]) -> 60825 | P18: =tabulaIenākumi[[#Totals],[gads]]/12 -> 5069
B21: mājoklis
B22: Hipotēka/īre | C22: 850 | D22: 850 | E22: 850 | F22: 850 | G22: 850 | H22: 850 | I22: 850 | J22: 850 | K22: 850 | L22: 850 | M22: 900 | N22: 900 | O22: =SUM(tabulaIzdevumuKategorija_01[[#This Row],[jan]:[dec]]) -> 10300 | P22: =tabulaIzdevumuKategorija_01[[#This Row],[gads]]/12 -> 858
B23: Elektrība | C23: 200 | D23: 200 | E23: 175 | F23: 150 | G23: 150 | H23: 175 | I23: 225 | J23: 275 | K23: 200 | L23: 150 | M23: 150 | N23: 150 | O23: =SUM(tabulaIzdevumuKategorija_01[[#This Row],[jan]:[dec]]) -> 2200 | P23: =tabulaIzdevumuKategorija_01[[#This Row],[gads]]/12 -> 183
B24: Tālrunis | C24: 50 | D24: 50 | E24: 100 | F24: 100 | G24: 50 | H24: 50 | I24: 100 | J24: 100 | K24: 50 | L24: 50 | M24: 50 | N24: 50 | O24: =SUM(tabulaIzdevumuKategorija_01[[#This Row],[jan]:[dec]]) -> 800 | P24: =tabulaIzdevumuKategorija_01[[#This Row],[gads]]/12 -> 67
B25: Kabelis/satelīts | C25: 69 | D25: 69 | E25: 69 | F25: 69 | G25: 69 | H25: 69 | I25: 69 | J25: 69 | K25: 69 | L25: 69 | M25: 69 | N25: 69 | O25: =SUM(tabulaIzdevumuKategorija_01[[#This Row],[jan]:[dec]]) -> 828 | P25: =tabulaIzdevumuKategorija_01[[#This Row],[gads]]/12 -> 69
B26: Internets | C26: 39 | D26: 39 | E26: 39 | F26: 39 | G26: 39 | H26: 39 | I26: 39 | J26: 39 | K26: 39 | L26: 39 | M26: 39 | N26: 39 | O26: =SUM(tabulaIzdevumuKategorija_01[[#This Row],[jan]:[dec]]) -> 468 | P26: =tabulaIzdevumuKategorija_01[[#This Row],[gads]]/12 -> 39
B27: =UPPER("Kopā " & B21) -> KOPĀ MĀJOKLIS | C27: =SUM(tabulaIzdevumuKategorija_01[jan]) -> 1208 | D27: =SUM(tabulaIzdevumuKategorija_01[feb]) -> 1208 | E27: =SUM(tabulaIzdevumuKategorija_01[mar]) -> 1233 | F27: =SUM(tabulaIzdevumuKategorija_01[apr]) -> 1208 | G27: =SUM(tabulaIzdevumuKategorija_01[mai]) -> 1158 | H27: =SUM(tabulaIzdevumuKategorija_01[jūn]) -> 1183 | I27: =SUM(tabulaIzdevumuKategorija_01[jūl]) -> 1283 | J27: =SUM(tabulaIzdevumuKategorija_01[aug]) -> 1333 | K27: =SUM(tabulaIzdevumuKategorija_01[sep]) -> 1208 | L27: =SUM(tabulaIzdevumuKategorija_01[okt]) -> 1158 | M27: =SUM(tabulaIzdevumuKategorija_01[nov]) -> 1208 | N27: =SUM(tabulaIzdevumuKategorija_01[dec]) -> 1208 | O27: =SUM(tabulaIzdevumuKategorija_01[gads]) -> 14596 | P27: =tabulaIzdevumuKategorija_01[[#Totals],[gads]]/12 -> 1216
B30: ikdienas tēriņi
B31: Pārtika | C31: 345 | D31: 250 | E31: 200 | F31: 400 | G31: 350 | H31: 250 | I31: 400 | J31: 350 | K31: 250 | L31: 400 | M31: 350 | N31: 250 | O31: =SUM(tabulaIzdevumuKategorija_02[[#This Row],[jan]:[dec]]) -> 3795 | P31: =tabulaIzdevumuKategorija_02[[#This Row],[gads]]/12 -> 316
B32: Apģērbs | C32: 300 | F32: 300 | I32: 300 | L32: 300 | O32: =SUM(tabulaIzdevumuKategorija_02[[#This Row],[jan]:[dec]]) -> 1200 | P32: =tabulaIzdevumuKategorija_02[[#This Row],[gads]]/12 -> 100
B33: Ēdienreizes ārpus mājām | C33: 125 | D33: 125 | E33: 300 | F33: 125 | G33: 125 | H33: 200 | I33: 125 | J33: 125 | K33: 125 | L33: 125 | M33: 125 | N33: 125 | O33: =SUM(tabulaIzdevumuKategorija_02[[#This Row],[jan]:[dec]]) -> 1750 | P33: =tabulaIzdevumuKategorija_02[[#This Row],[gads]]/12 -> 146
B34: Frizieris | C34: 25 | E34: 50 | G34: 25 | I34: 50 | K34: 25 | M34: 100 | O34: =SUM(tabulaIzdevumuKategorija_02[[#This Row],[jan]:[dec]]) -> 275 | P34: =tabulaIzdevumuKategorija_02[[#This Row],[gads]]/12 -> 23
B35: Cits | O35: =SUM(tabulaIzdevumuKategorija_02[[#This Row],[jan]:[dec]]) -> 0 | P35: =tabulaIzdevumuKategorija_02[[#This Row],[gads]]/12 -> 0
B36: =UPPER("Kopā " & B30) -> KOPĀ IKDIENAS TĒRIŅI | C36: =SUM(tabulaIzdevumuKategorija_02[jan]) -> 795 | D36: =SUM(tabulaIzdevumuKategorija_02[feb]) -> 375 | E36: =SUM(tabulaIzdevumuKategorija_02[mar]) -> 550 | F36: =SUM(tabulaIzdevumuKategorija_02[apr]) -> 825 | G36: =SUM(tabulaIzdevumuKategorija_02[mai]) -> 500 | H36: =SUM(tabulaIzdevumuKategorija_02[jūn]) -> 450 | I36: =SUM(tabulaIzdevumuKategorija_02[jūl]) -> 875 | J36: =SUM(tabulaIzdevumuKategorija_02[aug]) -> 475 | K36: =SUM(tabulaIzdevumuKategorija_02[sep]) -> 400 | L36: =SUM(tabulaIzdevumuKategorija_02[okt]) -> 825 | M36: =SUM(tabulaIzdevumuKategorija_02[nov]) -> 575 | N36: =SUM(tabulaIzdevumuKategorija_02[dec]) -> 375 | O36: =SUM(tabulaIzdevumuKategorija_02[gads]) -> 7020 | P36: =tabulaIzdevumuKategorija_02[[#Totals],[gads]]/12 -> 585
B39: bērni
B40: Materiāli skolai | C40: 123 | E40: 100 | J40: 345 | O40: =SUM(tabulaIzdevumuKategorija_03[[#This Row],[jan]:[dec]]) -> 568 | P40: =tabulaIzdevumuKategorija_03[[#This Row],[gads]]/12 -> 47
B41: Apģērbs | D41: 100 | G41: 100 | K41: 100 | N41: 100 | O41: =SUM(tabulaIzdevumuKategorija_03[[#This Row],[jan]:[dec]]) -> 400 | P41: =tabulaIzdevumuKategorija_03[[#This Row],[gads]]/12 -> 33
B42: Pusdienas skolā | C42: 50 | D42: 50 | E42: 50 | F42: 50 | G42: 50 | H42: 50 | K42: 50 | L42: 50 | M42: 50 | N42: 50 | O42: =SUM(tabulaIzdevumuKategorija_03[[#This Row],[jan]:[dec]]) -> 500 | P42: =tabulaIzdevumuKategorija_03[[#This Row],[gads]]/12 -> 42
B43: Medicīna | C43: 200 | D43: 200 | E43: 200 | F43: 200 | G43: 200 | H43: 200 | I43: 200 | J43: 200 | K43: 200 | L43: 200 | M43: 200 | N43: 200 | O43: =SUM(tabulaIzdevumuKategorija_03[[#This Row],[jan]:[dec]]) -> 2400 | P43: =tabulaIzdevumuKategorija_03[[#This Row],[gads]]/12 -> 200
B44: Cits | C44: 2000 | D44: 150 | H44: 200 | L44: 100 | O44: =SUM(tabulaIzdevumuKategorija_03[[#This Row],[jan]:[dec]]) -> 2450 | P44: =tabulaIzdevumuKategorija_03[[#This Row],[gads]]/12 -> 204
B45: =UPPER("Kopā " & B39) -> KOPĀ BĒRNI | C45: =SUM(tabulaIzdevumuKategorija_03[jan]) -> 2373 | D45: =SUM(tabulaIzdevumuKategorija_03[feb]) -> 500 | E45: =SUM(tabulaIzdevumuKategorija_03[mar]) -> 350 | F45: =SUM(tabulaIzdevumuKategorija_03[apr]) -> 250 | G45: =SUM(tabulaIzdevumuKategorija_03[mai]) -> 350 | H45: =SUM(tabulaIzdevumuKategorija_03[jūn]) -> 450 | I45: =SUM(tabulaIzdevumuKategorija_03[jūl]) -> 200 | J45: =SUM(tabulaIzdevumuKategorija_03[aug]) -> 545 | K45: =SUM(tabulaIzdevumuKategorija_03[sep]) -> 350 | L45: =SUM(tabulaIzdevumuKategorija_03[okt]) -> 350 | M45: =SUM(tabulaIzdevumuKategorija_03[nov]) -> 250 | N45: =SUM(tabulaIzdevumuKategorija_03[dec]) -> 350 | O45: =SUM(tabulaIzdevumuKategorija_03[gads]) -> 6318 | P45: =tabulaIzdevumuKategorija_03[[#Totals],[gads]]/12 -> 527
B48: transports
B49: Maksājumi par transportlīdzekli | C49: 600 | D49: 600 | E49: 600 | F49: 600 | G49: 600 | H49: 600 | I49: 600 | J49: 600 | K49: 600 | L49: 600 | M49: 600 | N49: 600 | O49: =SUM(tabulaIzdevumuKategorija_04[[#This Row],[jan]:[dec]]) -> 7200 | P49: =tabulaIzdevumuKategorija_04[[#This Row],[gads]]/12 -> 600
B50: Degviela | C50: 325 | D50: 325 | E50: 325 | F50: 325 | G50: 325 | H50: 500 | I50: 500 | J50: 500 | K50: 325 | L50: 325 | M50: 325 | N50: 325 | O50: =SUM(tabulaIzdevumuKategorija_04[[#This Row],[jan]:[dec]]) -> 4425 | P50: =tabulaIzdevumuKategorija_04[[#This Row],[gads]]/12 -> 369
B51: Remonts | D51: 100 | F51: 100 | H51: 100 | J51: 100 | L51: 100 | O51: =SUM(tabulaIzdevumuKategorija_04[[#This Row],[jan]:[dec]]) -> 500 | P51: =tabulaIzdevumuKategorija_04[[#This Row],[gads]]/12 -> 42
B52: Reģistrēšana/licence | C52: 185 | K52: 225 | O52: =SUM(tabulaIzdevumuKategorija_04[[#This Row],[jan]:[dec]]) -> 410 | P52: =tabulaIzdevumuKategorija_04[[#This Row],[gads]]/12 -> 34
B53: Cits | G53: 400 | O53: =SUM(tabulaIzdevumuKategorija_04[[#This Row],[jan]:[dec]]) -> 400 | P53: =tabulaIzdevumuKategorija_04[[#This Row],[gads]]/12 -> 33
B54: =UPPER("Kopā " & B48) -> KOPĀ TRANSPORTS | C54: =SUM(tabulaIzdevumuKategorija_04[jan]) -> 1110 | D54: =SUM(tabulaIzdevumuKategorija_04[feb]) -> 1025 | E54: =SUM(tabulaIzdevumuKategorija_04[mar]) -> 925 | F54: =SUM(tabulaIzdevumuKategorija_04[apr]) -> 1025 | G54: =SUM(tabulaIzdevumuKategorija_04[mai]) -> 1325 | H54: =SUM(tabulaIzdevumuKategorija_04[jūn]) -> 1200 | I54: =SUM(tabulaIzdevumuKategorija_04[jūl]) -> 1100 | J54: =SUM(tabulaIzdevumuKategorija_04[aug]) -> 1200 | K54: =SUM(tabulaIzdevumuKategorija_04[sep]) -> 1150 | L54: =SUM(tabulaIzdevumuKategorija_04[okt]) -> 1025 | M54: =SUM(tabulaIzdevumuKategorija_04[nov]) -> 925 | N54: =SUM(tabulaIzdevumuKategorija_04[dec]) -> 925 | O54: =SUM(tabulaIzdevumuKategorija_04[gads]) -> 12935 | P54: =tabulaIzdevumuKategorija_04[[#Totals],[gads]]/12 -> 1078
B57: veselība
B58: Ārsts/zobārsts | D58: 35 | G58: 35 | H58: 35 | I58: 35 | L58: 35 | O58: =SUM(tabulaIzdevumuKategorija_05[[#This Row],[jan]:[dec]]) -> 175 | P58: =tabulaIzdevumuKategorija_05[[#This Row],[gads]]/12 -> 15
B59: Zāles | C59: 25 | D59: 25 | E59: 25 | F59: 25 | G59: 25 | H59: 25 | I59: 25 | J59: 25 | K59: 25 | L59: 25 | M59: 25 | N59: 25 | O59: =SUM(tabulaIzdevumuKategorija_05[[#This Row],[jan]:[dec]]) -> 300 | P59: =tabulaIzdevumuKategorija_05[[#This Row],[gads]]/12 -> 25
B60: Cits | E60: 150 | K60: 150 | O60: =SUM(tabulaIzdevumuKategorija_05[[#This Row],[jan]:[dec]]) -> 300 | P60: =tabulaIzdevumuKategorija_05[[#This Row],[gads]]/12 -> 25
B61: =UPPER("Kopā " & B57) -> KOPĀ VESELĪBA | C61: =SUM(tabulaIzdevumuKategorija_05[jan]) -> 25 | D61: =SUM(tabulaIzdevumuKategorija_05[feb]) -> 60 | E61: =SUM(tabulaIzdevumuKategorija_05[mar]) -> 175 | F61: =SUM(tabulaIzdevumuKategorija_05[apr]) -> 25 | G61: =SUM(tabulaIzdevumuKategorija_05[mai]) -> 60 | H61: =SUM(tabulaIzdevumuKategorija_05[jūn]) -> 60 | I61: =SUM(tabulaIzdevumuKategorija_05[jūl]) -> 60 | J61: =SUM(tabulaIzdevumuKategorija_05[aug]) -> 25 | K61: =SUM(tabulaIzdevumuKategorija_05[sep]) -> 175 | L61: =SUM(tabulaIzdevumuKategorija_05[okt]) -> 60 | M61: =SUM(tabulaIzdevumuKategorija_05[nov]) -> 25 | N61: =SUM(tabulaIzdevumuKategorija_05[dec]) -> 25 | O61: =SUM(tabulaIzdevumuKategorija_05[gads]) -> 775 | P61: =tabulaIzdevumuKategorija_05[[#Totals],[gads]]/12 -> 65
B64: apdrošināšana
B65: Auto | C65: 150 | D65: 150 | E65: 150 | F65: 150 | G65: 150 | H65: 150 | I65: 150 | J65: 150 | K65: 150 | L65: 150 | M65: 150 | N65: 150 | O65: =SUM(tabulaIzdevumuKategorija_06[[#This Row],[jan]:[dec]]) -> 1800 | P65: =tabulaIzdevumuKategorija_06[[#This Row],[gads]]/12 -> 150
B66: Veselība | C66: 675 | D66: 675 | E66: 675 | F66: 675 | G66: 675 | H66: 675 | I66: 675 | J66: 675 | K66: 675 | L66: 675 | M66: 675 | N66: 675 | O66: =SUM(tabulaIzdevumuKategorija_06[[#This Row],[jan]:[dec]]) -> 8100 | P66: =tabulaIzdevumuKategorija_06[[#This Row],[gads]]/12 -> 675
B67: Dzīvība | C67: 150 | D67: 150 | E67: 150 | F67: 150 | G67: 150 | H67: 150 | I67: 150 | J67: 150 | K67: 150 | L67: 150 | M67: 150 | N67: 150 | O67: =SUM(tabulaIzdevumuKategorija_06[[#This Row],[jan]:[dec]]) -> 1800 | P67: =tabulaIzdevumuKategorija_06[[#This Row],[gads]]/12 -> 150
B68: =UPPER("Kopā " & B64) -> KOPĀ APDROŠINĀŠANA | C68: =SUM(tabulaIzdevumuKategorija_06[jan]) -> 975 | D68: =SUM(tabulaIzdevumuKategorija_06[feb]) -> 975 | E68: =SUM(tabulaIzdevumuKategorija_06[mar]) -> 975 | F68: =SUM(tabulaIzdevumuKategorija_06[apr]) -> 975 | G68: =SUM(tabulaIzdevumuKategorija_06[mai]) -> 975 | H68: =SUM(tabulaIzdevumuKategorija_06[jūn]) -> 975 | I68: =SUM(tabulaIzdevumuKategorija_06[jūl]) -> 975 | J68: =SUM(tabulaIzdevumuKategorija_06[aug]) -> 975 | K68: =SUM(tabulaIzdevumuKategorija_06[sep]) -> 975 | L68: =SUM(tabulaIzdevumuKategorija_06[okt]) -> 975 | M68: =SUM(tabulaIzdevumuKategorija_06[nov]) -> 975 | N68: =SUM(tabulaIzdevumuKategorija_06[dec]) -> 975 | O68: =SUM(tabulaIzdevumuKategorija_06[gads]) -> 11700 | P68: =tabulaIzdevumuKategorija_06[[#Totals],[gads]]/12 -> 975
B71: izglītība
B72: Privātstundas | E72: 400 | K72: 400 | O72: =SUM(tabulaIzdevumuKategorija_07[[#This Row],[jan]:[dec]]) -> 800 | P72: =tabulaIzdevumuKategorija_07[[#This Row],[gads]]/12 -> 67
B73: Grāmatas | E73: 225 | K73: 225 | O73: =SUM(tabulaIzdevumuKategorija_07[[#This Row],[jan]:[dec]]) -> 450 | P73: =tabulaIzdevumuKategorija_07[[#This Row],[gads]]/12 -> 38
B74: Cits | O74: =SUM(tabulaIzdevumuKategorija_07[[#This Row],[jan]:[dec]]) -> 0 | P74: =tabulaIzdevumuKategorija_07[[#This Row],[gads]]/12 -> 0
B75: =UPPER("Kopā " & B71) -> KOPĀ IZGLĪTĪBA | C75: =SUM(tabulaIzdevumuKategorija_07[jan]) -> 0 | D75: =SUM(tabulaIzdevumuKategorija_07[feb]) -> 0 | E75: =SUM(tabulaIzdevumuKategorija_07[mar]) -> 625 | F75: =SUM(tabulaIzdevumuKategorija_07[apr]) -> 0 | G75: =SUM(tabulaIzdevumuKategorija_07[mai]) -> 0 | H75: =SUM(tabulaIzdevumuKategorija_07[jūn]) -> 0 | I75: =SUM(tabulaIzdevumuKategorija_07[jūl]) -> 0 | J75: =SUM(tabulaIzdevumuKategorija_07[aug]) -> 0 | K75: =SUM(tabulaIzdevumuKategorija_07[sep]) -> 625 | L75: =SUM(tabulaIzdevumuKategorija_07[okt]) -> 0 | M75: =SUM(tabulaIzdevumuKategorija_07[nov]) -> 0 | N75: =SUM(tabulaIzdevumuKategorija_07[dec]) -> 0 | O75: =SUM(tabulaIzdevumuKategorija_07[gads]) -> 1250 | P75: =tabulaIzdevumuKategorija_07[[#Totals],[gads]]/12 -> 104
B78: labdarība
B79: Pasniegtās dāvanas | D79: 100 | H79: 100 | L79: 100 | O79: =SUM(tabulaIzdevumuKategorija_08[[#This Row],[jan]:[dec]]) -> 300 | P79: =tabulaIzdevumuKategorija_08[[#This Row],[gads]]/12 -> 25
B80: Ziedojumi labdarībai | E80: 100 | G80: 100 | I80: 100 | K80: 100 | M80: 100 | O80: =SUM(tabulaIzdevumuKategorija_08[[#This Row],[jan]:[dec]]) -> 500 | P80: =tabulaIzdevumuKategorija_08[[#This Row],[gads]]/12 -> 42
B81: Cits | F81: 100 | J81: 100 | N81: 100 | O81: =SUM(tabulaIzdevumuKategorija_08[[#This Row],[jan]:[dec]]) -> 300 | P81: =tabulaIzdevumuKategorija_08[[#This Row],[gads]]/12 -> 25
B82: =UPPER("Kopā " & B78) -> KOPĀ LABDARĪBA | C82: =SUM(tabulaIzdevumuKategorija_08[jan]) -> 0 | D82: =SUM(tabulaIzdevumuKategorija_08[feb]) -> 100 | E82: =SUM(tabulaIzdevumuKategorija_08[mar]) -> 100 | F82: =SUM(tabulaIzdevumuKategorija_08[apr]) -> 100 | G82: =SUM(tabulaIzdevumuKategorija_08[mai]) -> 100 | H82: =SUM(tabulaIzdevumuKategorija_08[jūn]) -> 100 | I82: =SUM(tabulaIzdevumuKategorija_08[jūl]) -> 100 | J82: =SUM(tabulaIzdevumuKategorija_08[aug]) -> 100 | K82: =SUM(tabulaIzdevumuKategorija_08[sep]) -> 100 | L82: =SUM(tabulaIzdevumuKategorija_08[okt]) -> 100 | M82: =SUM(tabulaIzdevumuKategorija_08[nov]) -> 100 | N82: =SUM(tabulaIzdevumuKategorija_08[dec]) -> 100 | O82: =SUM(tabulaIzdevumuKategorija_08[gads]) -> 1100 | P82: =tabulaIzdevumuKategorija_07[[#Totals],[gads]]/12 -> 104
B85: ietaupījumi
B86: Uzkrājumi ārkārtas gadījumiem | C86: 100 | D86: 100 | E86: 100 | F86: 100 | G86: 100 | K86: 100 | L86: 100 | M86: 100 | N86: 100 | O86: =SUM(tabulaIzdevumuKategorija_09[[#This Row],[jan]:[dec]]) -> 900 | P86: =tabulaIzdevumuKategorija_09[[#This Row],[gads]]/12 -> 75
B87: Aiziešana pensijā (401k, IPK) | C87: 500 | D87: 500 | E87: 500 | F87: 500 | G87: 500 | H87: 500 | I87: 500 | J87: 500 | K87: 500 | L87: 500 | M87: 500 | N87: 500 | O87: =SUM(tabulaIzdevumuKategorija_09[[#This Row],[jan]:[dec]]) -> 6000 | P87: =tabulaIzdevumuKategorija_09[[#This Row],[gads]]/12 -> 500
B88: Pārskaitījums ietaupījumiem | C88: 200 | D88: 200 | E88: 200 | F88: 200 | G88: 200 | K88: 200 | L88: 200 | M88: 200 | N88: 200 | O88: =SUM(tabulaIzdevumuKategorija_09[[#This Row],[jan]:[dec]]) -> 1800 | P88: =tabulaIzdevumuKategorija_09[[#This Row],[gads]]/12 -> 150
B89: =UPPER("Kopā " & B85) -> KOPĀ IETAUPĪJUMI | C89: =SUM(tabulaIzdevumuKategorija_09[jan]) -> 800 | D89: =SUM(tabulaIzdevumuKategorija_09[feb]) -> 800 | E89: =SUM(tabulaIzdevumuKategorija_09[mar]) -> 800 | F89: =SUM(tabulaIzdevumuKategorija_09[apr]) -> 800 | G89: =SUM(tabulaIzdevumuKategorija_09[mai]) -> 800 | H89: =SUM(tabulaIzdevumuKategorija_09[jūn]) -> 500 | I89: =SUM(tabulaIzdevumuKategorija_09[jūl]) -> 500 | J89: =SUM(tabulaIzdevumuKategorija_09[aug]) -> 500 | K89: =SUM(tabulaIzdevumuKategorija_09[sep]) -> 800 | L89: =SUM(tabulaIzdevumuKategorija_09[okt]) -> 800 | M89: =SUM(tabulaIzdevumuKategorija_09[nov]) -> 800 | N89: =SUM(tabulaIzdevumuKategorija_09[dec]) -> 800 | O89: =SUM(tabulaIzdevumuKategorija_09[gads]) -> 8700 | P89: =tabulaIzdevumuKategorija_08[[#Totals],[gads]]/12 -> 92
B92: saistības
B93: 1. kredītkarte | C93: 145 | D93: 145 | E93: 145 | F93: 145 | G93: 145 | H93: 145 | I93: 145 | J93: 145 | K93: 145 | L93: 145 | M93: 145 | N93: 145 | O93: =SUM(tabulaIzdevumuKategorija_10[[#This Row],[jan]:[dec]]) -> 1740 | P93: =tabulaIzdevumuKategorija_10[[#This Row],[gads]]/12 -> 145
B94: Federālie nodokļi | C94: 450 | F94: 450 | I94: 450 | L94: 450 | O94: =SUM(tabulaIzdevumuKategorija_10[[#This Row],[jan]:[dec]]) -> 1800 | P94: =tabulaIzdevumuKategorija_10[[#This Row],[gads]]/12 -> 150
B95: Studiju aizdevums | C95: 55 | D95: 55 | E95: 55 | F95: 55 | G95: 55 | H95: 55 | I95: 55 | J95: 55 | K95: 55 | L95: 55 | M95: 55 | N95: 55 | O95: =SUM(tabulaIzdevumuKategorija_10[[#This Row],[jan]:[dec]]) -> 660 | P95: =tabulaIzdevumuKategorija_10[[#This Row],[gads]]/12 -> 55
B96: =UPPER("Kopā " & B92) -> KOPĀ SAISTĪBAS | C96: =SUM(tabulaIzdevumuKategorija_10[jan]) -> 650 | D96: =SUM(tabulaIzdevumuKategorija_10[feb]) -> 200 | E96: =SUM(tabulaIzdevumuKategorija_10[mar]) -> 200 | F96: =SUM(tabulaIzdevumuKategorija_10[apr]) -> 650 | G96: =SUM(tabulaIzdevumuKategorija_10[mai]) -> 200 | H96: =SUM(tabulaIzdevumuKategorija_10[jūn]) -> 200 | I96: =SUM(tabulaIzdevumuKategorija_10[jūl]) -> 650 | J96: =SUM(tabulaIzdevumuKategorija_10[aug]) -> 200 | K96: =SUM(tabulaIzdevumuKategorija_10[sep]) -> 200 | L96: =SUM(tabulaIzdevumuKategorija_10[okt]) -> 650 | M96: =SUM(tabulaIzdevumuKategorija_10[nov]) -> 200 | N96: =SUM(tabulaIzdevumuKategorija_10[dec]) -> 200 | O96: =SUM(tabulaIzdevumuKategorija_10[gads]) -> 4200 | P96: =tabulaIzdevumuKategorija_10[[#Totals],[gads]]/12 -> 350
O100: =SUM(tabulaIzdevumuKategorija_11[[#This Row],[jan]:[dec]]) -> 0 | P100: =tabulaIzdevumuKategorija_11[[#This Row],[gads]]/12 -> 0
O101: =SUM(tabulaIzdevumuKategorija_11[[#This Row],[jan]:[dec]]) -> 0 | P101: =tabulaIzdevumuKategorija_11[[#This Row],[gads]]/12 -> 0
O102: =SUM(tabulaIzdevumuKategorija_11[[#This Row],[jan]:[dec]]) -> 0 | P102: =tabulaIzdevumuKategorija_11[[#This Row],[gads]]/12 -> 0
B103: =UPPER("Kopā " & B99) -> KOPĀ | C103: =SUM(tabulaIzdevumuKategorija_11[jan]) -> 0 | D103: =SUM(tabulaIzdevumuKategorija_11[feb]) -> 0 | E103: =SUM(tabulaIzdevumuKategorija_11[mar]) -> 0 | F103: =SUM(tabulaIzdevumuKategorija_11[apr]) -> 0 | G103: =SUM(tabulaIzdevumuKategorija_11[mai]) -> 0 | H103: =SUM(tabulaIzdevumuKategorija_11[jūn]) -> 0 | I103: =SUM(tabulaIzdevumuKategorija_11[jūl]) -> 0 | J103: =SUM(tabulaIzdevumuKategorija_11[aug]) -> 0 | K103: =SUM(tabulaIzdevumuKategorija_11[sep]) -> 0 | L103: =SUM(tabulaIzdevumuKategorija_11[okt]) -> 0 | M103: =SUM(tabulaIzdevumuKategorija_11[nov]) -> 0 | N103: =SUM(tabulaIzdevumuKategorija_11[dec]) -> 0 | O103: =SUM(tabulaIzdevumuKategorija_11[gads]) -> 0 | P103: =tabulaIzdevumuKategorija_11[[#Totals],[gads]]/12 -> 0
O107: =SUM(tabulaIzdevumuKategorija_12[[#This Row],[jan]:[dec]]) -> 0 | P107: =tabulaIzdevumuKategorija_12[[#This Row],[gads]]/12 -> 0
O108: =SUM(tabulaIzdevumuKategorija_12[[#This Row],[jan]:[dec]]) -> 0 | P108: =tabulaIzdevumuKategorija_12[[#This Row],[gads]]/12 -> 0
O109: =SUM(tabulaIzdevumuKategorija_12[[#This Row],[jan]:[dec]]) -> 0 | P109: =tabulaIzdevumuKategorija_12[[#This Row],[gads]]/12 -> 0
B110: =UPPER("Kopā " & B106) -> KOPĀ | C110: =SUM(tabulaIzdevumuKategorija_12[jan]) -> 0 | D110: =SUM(tabulaIzdevumuKategorija_12[feb]) -> 0 | E110: =SUM(tabulaIzdevumuKategorija_12[mar]) -> 0 | F110: =SUM(tabulaIzdevumuKategorija_12[apr]) -> 0 | G110: =SUM(tabulaIzdevumuKategorija_12[mai]) -> 0 | H110: =SUM(tabulaIzdevumuKategorija_12[jūn]) -> 0 | I110: =SUM(tabulaIzdevumuKategorija_12[jūl]) -> 0 | J110: =SUM(tabulaIzdevumuKategorija_12[aug]) -> 0 | K110: =SUM(tabulaIzdevumuKategorija_12[sep]) -> 0 | L110: =SUM(tabulaIzdevumuKategorija_12[okt]) -> 0 | M110: =SUM(tabulaIzdevumuKategorija_12[nov]) -> 0 | N110: =SUM(tabulaIzdevumuKategorija_12[dec]) -> 0 | O110: =SUM(tabulaIzdevumuKategorija_12[gads]) -> 0 | P110: =tabulaIzdevumuKategorija_12[[#Totals],[gads]]/12 -> 0
O114: =SUM(tabulaIzdevumuKategorija_13[[#This Row],[jan]:[dec]]) -> 0 | P114: =tabulaIzdevumuKategorija_13[[#This Row],[gads]]/12 -> 0
O115: =SUM(tabulaIzdevumuKategorija_13[[#This Row],[jan]:[dec]]) -> 0 | P115: =tabulaIzdevumuKategorija_13[[#This Row],[gads]]/12 -> 0
O116: =SUM(tabulaIzdevumuKategorija_13[[#This Row],[jan]:[dec]]) -> 0 | P116: =tabulaIzdevumuKategorija_13[[#This Row],[gads]]/12 -> 0
B117: =UPPER("Kopā " & B113) -> KOPĀ | C117: =SUM(tabulaIzdevumuKategorija_13[jan]) -> 0 | D117: =SUM(tabulaIzdevumuKategorija_13[feb]) -> 0 | E117: =SUM(tabulaIzdevumuKategorija_13[mar]) -> 0 | F117: =SUM(tabulaIzdevumuKategorija_13[apr]) -> 0 | G117: =SUM(tabulaIzdevumuKategorija_13[mai]) -> 0 | H117: =SUM(tabulaIzdevumuKategorija_13[jūn]) -> 0 | I117: =SUM(tabulaIzdevumuKategorija_13[jūl]) -> 0 | J117: =SUM(tabulaIzdevumuKategorija_13[aug]) -> 0 | K117: =SUM(tabulaIzdevumuKategorija_13[sep]) -> 0 | L117: =SUM(tabulaIzdevumuKategorija_13[okt]) -> 0 | M117: =SUM(tabulaIzdevumuKategorija_13[nov]) -> 0 | N117: =SUM(tabulaIzdevumuKategorija_13[dec]) -> 0 | O117: =SUM(tabulaIzdevumuKategorija_13[gads]) -> 0 | P117: =tabulaIzdevumuKategorija_11[[#Totals],[gads]]/12 -> 0
O122: =SUM(tabulaIzdevumuKategorija_14[[#This Row],[jan]:[dec]]) -> 0 | P122: =tabulaIzdevumuKategorija_14[[#This Row],[gads]]/12 -> 0
O123: =SUM(tabulaIzdevumuKategorija_14[[#This Row],[jan]:[dec]]) -> 0 | P123: =tabulaIzdevumuKategorija_14[[#This Row],[gads]]/12 -> 0
O124: =SUM(tabulaIzdevumuKategorija_14[[#This Row],[jan]:[dec]]) -> 0 | P124: =tabulaIzdevumuKategorija_14[[#This Row],[gads]]/12 -> 0
B125: =UPPER("Kopā " & B121) -> KOPĀ | C125: =SUM(tabulaIzdevumuKategorija_14[jan]) -> 0 | D125: =SUM(tabulaIzdevumuKategorija_14[feb]) -> 0 | E125: =SUM(tabulaIzdevumuKategorija_14[mar]) -> 0 | F125: =SUM(tabulaIzdevumuKategorija_14[apr]) -> 0 | G125: =SUM(tabulaIzdevumuKategorija_14[mai]) -> 0 | H125: =SUM(tabulaIzdevumuKategorija_14[jūn]) -> 0 | I125: =SUM(tabulaIzdevumuKategorija_14[jūl]) -> 0 | J125: =SUM(tabulaIzdevumuKategorija_14[aug]) -> 0 | K125: =SUM(tabulaIzdevumuKategorija_14[sep]) -> 0 | L125: =SUM(tabulaIzdevumuKategorija_14[okt]) -> 0 | M125: =SUM(tabulaIzdevumuKategorija_14[nov]) -> 0 | N125: =SUM(tabulaIzdevumuKategorija_14[dec]) -> 0 | O125: =SUM(tabulaIzdevumuKategorija_14[gads]) -> 0 | P125: =tabulaIzdevumuKategorija_11[[#Totals],[gads]]/12 -> 0
O129: =SUM(tabulaIzdevumuKategorija_16[[#This Row],[jan]:[dec]]) -> 0 | P129: =tabulaIzdevumuKategorija_16[[#This Row],[gads]]/12 -> 0
O130: =SUM(tabulaIzdevumuKategorija_16[[#This Row],[jan]:[dec]]) -> 0 | P130: =tabulaIzdevumuKategorija_16[[#This Row],[gads]]/12 -> 0
O131: =SUM(tabulaIzdevumuKategorija_16[[#This Row],[jan]:[dec]]) -> 0 | P131: =tabulaIzdevumuKategorija_16[[#This Row],[gads]]/12 -> 0
B132: =UPPER("Kopā " & B128) -> KOPĀ | C132: =SUM(tabulaIzdevumuKategorija_16[jan]) -> 0 | D132: =SUM(tabulaIzdevumuKategorija_16[feb]) -> 0 | E132: =SUM(tabulaIzdevumuKategorija_16[mar]) -> 0 | F132: =SUM(tabulaIzdevumuKategorija_16[apr]) -> 0 | G132: =SUM(tabulaIzdevumuKategorija_16[mai]) -> 0 | H132: =SUM(tabulaIzdevumuKategorija_16[jūn]) -> 0 | I132: =SUM(tabulaIzdevumuKategorija_16[jūl]) -> 0 | J132: =SUM(tabulaIzdevumuKategorija_16[aug]) -> 0 | K132: =SUM(tabulaIzdevumuKategorija_16[sep]) -> 0 | L132: =SUM(tabulaIzdevumuKategorija_16[okt]) -> 0 | M132: =SUM(tabulaIzdevumuKategorija_16[nov]) -> 0 | N132: =SUM(tabulaIzdevumuKategorija_16[dec]) -> 0 | O132: =SUM(tabulaIzdevumuKategorija_16[gads]) -> 0 | P132: =tabulaIzdevumuKategorija_11[[#Totals],[gads]]/12 -> 0

Sheet Iestatīšana
B1: KALNIŅU ĢIMENE 2012. G.
B2: ienākumi | D2: izdevumi
B3: algas un dzeramnaudas
B4: procentu ienākumi | D4: mājoklis | F4: mājoklis | H4: ikdienas tēriņi | J4: bērni
B5: dividendes | D5: ikdienas tēriņi | F5: hipotēka/īre | H5: pārtika | J5: medicīna
B6: saņemtās dāvanas | D6: bērni | F6: elektrība | H6: higiēnas preces | J6: apģērbs
B7: atmaksas/kompensācijas | D7: transports | F7: degviela | H7: apģērbs | J7: privātstundas
B8: pārskaitījums no ietaupījumiem | D8: veselība | F8: ūdens/kanalizācija/atkritumi | H8: tīrīšanas pakalpojumi | J8: pusdienas skolā
B9: cits | D9: apdrošināšana | F9: tālrunis | H9: ēdienreizes ārpus mājām | J9: materiāli skolai
D10: izglītība | F10: kabelis/satelīts | H10: ķīmiskā tīrītava | J10: bērnu pieskatīšana
D11: labdarība | F11: internets | H11: frizieris | J11: rotaļlietas/spēles
D12: ietaupījumi | F12: mēbeles/iekārtas | H12: cits | J12: cits
D13: saistības | F13: mauriņš/dārzs
D14: izklaide | F14: saimniecības preces
D15: mājdzīvnieki | F15: apkope
D16: abonementi | F16: uzlabojumi
D17: atvaļinājums | F17: cits
D18: dažādi
F20: transports | H20: veselība | J20: apdrošināšana
F21: maksājumi par transportlīdzekli | H21: ārsts/zobārsts | J21: auto
F22: degviela | H22: zāles | J22: veselība
F23: autobusa/taksometra/vilciena biļetes | H23: sporta klubs | J23: mājoklis/īre
F24: remonts | H24: ārkārtas | J24: dzīvība
F25: reģistrēšana/licence | H25: cits | J25: cits
F26: cits
F29: izglītība | H29: labdarība | J29: ietaupījumi
F30: privātstundas | H30: pasniegtās dāvanas | J30: uzkrājumi ārkārtas gadījumiem
F31: grāmatas | H31: ziedojumi labdarībai | J31: pārskaitījums ietaupījumiem
F32: mūzikas stundas | H32: ar reliģiju saistīti ziedojumi | J32: aiziešana pensijā (401k, IPK)
F33: cits | H33: cits | J33: investīcijas
J34: koledža
J35: cits
F38: saistības | H38: izklaide | J38: mājdzīvnieki
F39: studiju aizdevums | H39: video/dvd | J39: pārtika
F40: cits aizdevums | H40: mūzika | J40: medicīna
F41: 1. kredītkarte | H41: spēles | J41: rotaļlietas/materiāli
F42: 2. kredītkarte | H42: noma | J42: cits
F43: 3. kredītkarte | H43: kino/teātris
F44: alimenti/atbalsts bērniem | H44: koncerti/izrādes
F45: federālie nodokļi | H45: grāmatas
F46: īpašuma nodoklis | H46: hobiji
F47: vietējie nodokļi | H47: filmēšana/fotografēšana
F48: māju īpašnieku biedrības maksājumi | H48: sports
F49: juridiski izdevumi | H49: atpūta pie dabas
F50: cits | H50: rotaļlietas/ierīces
H51: cits
F53: abonementi | H53: atvaļinājums | J53: dažādi
F54: laikraksti | H54: ceļošana | J54: banku komisijas maksas
F55: žurnāli | H55: naktsmītnes | J55: pasts
F56: nodevas | H56: pārtika | J56: cits
F57: dalības maksa klubos | H57: automašīnas noma
F58: cits | H58: izklaide
H59: cits

Sheet diagrammas dati (hidden)
B1: *** Šai lapai jāpaliek slēptai***
B4: Periods | C4: 1
C6: jan | D6: feb | E6: mar | F6: apr | G6: mai | H6: jūn | I6: jūl | J6: aug | K6: sep | L6: okt | M6: nov | N6: dec | O6: gads | P6: Vid
B7: =LOWER(Budžets!B128) ->  | C7: =SUM(tabulaIzdevumuKategorija_16[jan]) -> 0 | D7: =SUM(tabulaIzdevumuKategorija_16[feb]) -> 0 | E7: =SUM(tabulaIzdevumuKategorija_16[mar]) -> 0 | F7: =SUM(tabulaIzdevumuKategorija_16[apr]) -> 0 | G7: =SUM(tabulaIzdevumuKategorija_16[mai]) -> 0 | H7: =SUM(tabulaIzdevumuKategorija_16[jūn]) -> 0 | I7: =SUM(tabulaIzdevumuKategorija_16[jūl]) -> 0 | J7: =SUM(tabulaIzdevumuKategorija_16[aug]) -> 0 | K7: =SUM(tabulaIzdevumuKategorija_16[sep]) -> 0 | L7: =SUM(tabulaIzdevumuKategorija_16[okt]) -> 0 | M7: =SUM(tabulaIzdevumuKategorija_16[nov]) -> 0 | N7: =SUM(tabulaIzdevumuKategorija_16[dec]) -> 0 | O7: =SUM(tabulaIzdevumuKategorija_16[gads]) -> 0 | P7: =SUM(tabulaIzdevumuKategorija_16[vid]) -> 0
B8: =LOWER(Budžets!B121) ->  | C8: =SUM(tabulaIzdevumuKategorija_14[jan]) -> 0 | D8: =SUM(tabulaIzdevumuKategorija_14[feb]) -> 0 | E8: =SUM(tabulaIzdevumuKategorija_14[mar]) -> 0 | F8: =SUM(tabulaIzdevumuKategorija_14[apr]) -> 0 | G8: =SUM(tabulaIzdevumuKategorija_14[mai]) -> 0 | H8: =SUM(tabulaIzdevumuKategorija_14[jūn]) -> 0 | I8: =SUM(tabulaIzdevumuKategorija_14[jūl]) -> 0 | J8: =SUM(tabulaIzdevumuKategorija_14[aug]) -> 0 | K8: =SUM(tabulaIzdevumuKategorija_14[sep]) -> 0 | L8: =SUM(tabulaIzdevumuKategorija_14[okt]) -> 0 | M8: =SUM(tabulaIzdevumuKategorija_14[nov]) -> 0 | N8: =SUM(tabulaIzdevumuKategorija_14[dec]) -> 0 | O8: =SUM(tabulaIzdevumuKategorija_14[gads]) -> 0 | P8: =SUM(tabulaIzdevumuKategorija_14[vid]) -> 0
B9: =LOWER(Budžets!B113) ->  | C9: =SUM(tabulaIzdevumuKategorija_13[jan]) -> 0 | D9: =SUM(tabulaIzdevumuKategorija_13[feb]) -> 0 | E9: =SUM(tabulaIzdevumuKategorija_13[mar]) -> 0 | F9: =SUM(tabulaIzdevumuKategorija_13[apr]) -> 0 | G9: =SUM(tabulaIzdevumuKategorija_13[mai]) -> 0 | H9: =SUM(tabulaIzdevumuKategorija_13[jūn]) -> 0 | I9: =SUM(tabulaIzdevumuKategorija_13[jūl]) -> 0 | J9: =SUM(tabulaIzdevumuKategorija_13[aug]) -> 0 | K9: =SUM(tabulaIzdevumuKategorija_13[sep]) -> 0 | L9: =SUM(tabulaIzdevumuKategorija_13[okt]) -> 0 | M9: =SUM(tabulaIzdevumuKategorija_13[nov]) -> 0 | N9: =SUM(tabulaIzdevumuKategorija_13[dec]) -> 0 | O9: =SUM(tabulaIzdevumuKategorija_13[gads]) -> 0 | P9: =SUM(tabulaIzdevumuKategorija_13[vid]) -> 0
B10: =LOWER(Budžets!B106) ->  | C10: =SUM(tabulaIzdevumuKategorija_12[jan]) -> 0 | D10: =SUM(tabulaIzdevumuKategorija_12[feb]) -> 0 | E10: =SUM(tabulaIzdevumuKategorija_12[mar]) -> 0 | F10: =SUM(tabulaIzdevumuKategorija_12[apr]) -> 0 | G10: =SUM(tabulaIzdevumuKategorija_12[mai]) -> 0 | H10: =SUM(tabulaIzdevumuKategorija_12[jūn]) -> 0 | I10: =SUM(tabulaIzdevumuKategorija_12[jūl]) -> 0 | J10: =SUM(tabulaIzdevumuKategorija_12[aug]) -> 0 | K10: =SUM(tabulaIzdevumuKategorija_12[sep]) -> 0 | L10: =SUM(tabulaIzdevumuKategorija_12[okt]) -> 0 | M10: =SUM(tabulaIzdevumuKategorija_12[nov]) -> 0 | N10: =SUM(tabulaIzdevumuKategorija_12[dec]) -> 0 | O10: =SUM(tabulaIzdevumuKategorija_12[gads]) -> 0 | P10: =SUM(tabulaIzdevumuKategorija_12[vid]) -> 0
B11: =LOWER(Budžets!B99) ->  | C11: =SUM(tabulaIzdevumuKategorija_11[jan]) -> 0 | D11: =SUM(tabulaIzdevumuKategorija_11[feb]) -> 0 | E11: =SUM(tabulaIzdevumuKategorija_11[mar]) -> 0 | F11: =SUM(tabulaIzdevumuKategorija_11[apr]) -> 0 | G11: =SUM(tabulaIzdevumuKategorija_11[mai]) -> 0 | H11: =SUM(tabulaIzdevumuKategorija_11[jūn]) -> 0 | I11: =SUM(tabulaIzdevumuKategorija_11[jūl]) -> 0 | J11: =SUM(tabulaIzdevumuKategorija_11[aug]) -> 0 | K11: =SUM(tabulaIzdevumuKategorija_11[sep]) -> 0 | L11: =SUM(tabulaIzdevumuKategorija_11[okt]) -> 0 | M11: =SUM(tabulaIzdevumuKategorija_11[nov]) -> 0 | N11: =SUM(tabulaIzdevumuKategorija_11[dec]) -> 0 | O11: =SUM(tabulaIzdevumuKategorija_11[gads]) -> 0 | P11: =SUM(tabulaIzdevumuKategorija_11[vid]) -> 0
B12: =LOWER(Budžets!B92) -> saistības | C12: =SUM(tabulaIzdevumuKategorija_10[jan]) -> 650 | D12: =SUM(tabulaIzdevumuKategorija_10[feb]) -> 200 | E12: =SUM(tabulaIzdevumuKategorija_10[mar]) -> 200 | F12: =SUM(tabulaIzdevumuKategorija_10[apr]) -> 650 | G12: =SUM(tabulaIzdevumuKategorija_10[mai]) -> 200 | H12: =SUM(tabulaIzdevumuKategorija_10[jūn]) -> 200 | I12: =SUM(tabulaIzdevumuKategorija_10[jūl]) -> 650 | J12: =SUM(tabulaIzdevumuKategorija_10[aug]) -> 200 | K12: =SUM(tabulaIzdevumuKategorija_10[sep]) -> 200 | L12: =SUM(tabulaIzdevumuKategorija_10[okt]) -> 650 | M12: =SUM(tabulaIzdevumuKategorija_10[nov]) -> 200 | N12: =SUM(tabulaIzdevumuKategorija_10[dec]) -> 200 | O12: =SUM(tabulaIzdevumuKategorija_10[gads]) -> 4,200 | P12: =SUM(tabulaIzdevumuKategorija_10[vid]) -> 350
B13: =LOWER(Budžets!B85) -> ietaupījumi | C13: =SUM(tabulaIzdevumuKategorija_09[jan]) -> 800 | D13: =SUM(tabulaIzdevumuKategorija_09[feb]) -> 800 | E13: =SUM(tabulaIzdevumuKategorija_09[mar]) -> 800 | F13: =SUM(tabulaIzdevumuKategorija_09[apr]) -> 800 | G13: =SUM(tabulaIzdevumuKategorija_09[mai]) -> 800 | H13: =SUM(tabulaIzdevumuKategorija_09[jūn]) -> 500 | I13: =SUM(tabulaIzdevumuKategorija_09[jūl]) -> 500 | J13: =SUM(tabulaIzdevumuKategorija_09[aug]) -> 500 | K13: =SUM(tabulaIzdevumuKategorija_09[sep]) -> 800 | L13: =SUM(tabulaIzdevumuKategorija_09[okt]) -> 800 | M13: =SUM(tabulaIzdevumuKategorija_09[nov]) -> 800 | N13: =SUM(tabulaIzdevumuKategorija_09[dec]) -> 800 | O13: =SUM(tabulaIzdevumuKategorija_09[gads]) -> 8,700 | P13: =SUM(tabulaIzdevumuKategorija_09[vid]) -> 725
B14: =LOWER(Budžets!B78) -> labdarība | C14: =SUM(tabulaIzdevumuKategorija_08[jan]) -> 0 | D14: =SUM(tabulaIzdevumuKategorija_08[feb]) -> 100 | E14: =SUM(tabulaIzdevumuKategorija_08[mar]) -> 100 | F14: =SUM(tabulaIzdevumuKategorija_08[apr]) -> 100 | G14: =SUM(tabulaIzdevumuKategorija_08[mai]) -> 100 | H14: =SUM(tabulaIzdevumuKategorija_08[jūn]) -> 100 | I14: =SUM(tabulaIzdevumuKategorija_08[jūl]) -> 100 | J14: =SUM(tabulaIzdevumuKategorija_08[aug]) -> 100 | K14: =SUM(tabulaIzdevumuKategorija_08[sep]) -> 100 | L14: =SUM(tabulaIzdevumuKategorija_08[okt]) -> 100 | M14: =SUM(tabulaIzdevumuKategorija_08[nov]) -> 100 | N14: =SUM(tabulaIzdevumuKategorija_08[dec]) -> 100 | O14: =SUM(tabulaIzdevumuKategorija_08[gads]) -> 1,100 | P14: =SUM(tabulaIzdevumuKategorija_08[vid]) -> 92
B15: =LOWER(Budžets!B71) -> izglītība | C15: =SUM(tabulaIzdevumuKategorija_07[jan]) -> 0 | D15: =SUM(tabulaIzdevumuKategorija_07[feb]) -> 0 | E15: =SUM(tabulaIzdevumuKategorija_07[mar]) -> 625 | F15: =SUM(tabulaIzdevumuKategorija_07[apr]) -> 0 | G15: =SUM(tabulaIzdevumuKategorija_07[mai]) -> 0 | H15: =SUM(tabulaIzdevumuKategorija_07[jūn]) -> 0 | I15: =SUM(tabulaIzdevumuKategorija_07[jūl]) -> 0 | J15: =SUM(tabulaIzdevumuKategorija_07[aug]) -> 0 | K15: =SUM(tabulaIzdevumuKategorija_07[sep]) -> 625 | L15: =SUM(tabulaIzdevumuKategorija_07[okt]) -> 0 | M15: =SUM(tabulaIzdevumuKategorija_07[nov]) -> 0 | N15: =SUM(tabulaIzdevumuKategorija_07[dec]) -> 0 | O15: =SUM(tabulaIzdevumuKategorija_07[gads]) -> 1,250 | P15: =SUM(tabulaIzdevumuKategorija_07[vid]) -> 104
B16: =LOWER(Budžets!B64) -> apdrošināšana | C16: =SUM(tabulaIzdevumuKategorija_06[jan]) -> 975 | D16: =SUM(tabulaIzdevumuKategorija_06[feb]) -> 975 | E16: =SUM(tabulaIzdevumuKategorija_06[mar]) -> 975 | F16: =SUM(tabulaIzdevumuKategorija_06[apr]) -> 975 | G16: =SUM(tabulaIzdevumuKategorija_06[mai]) -> 975 | H16: =SUM(tabulaIzdevumuKategorija_06[jūn]) -> 975 | I16: =SUM(tabulaIzdevumuKategorija_06[jūl]) -> 975 | J16: =SUM(tabulaIzdevumuKategorija_06[aug]) -> 975 | K16: =SUM(tabulaIzdevumuKategorija_06[sep]) -> 975 | L16: =SUM(tabulaIzdevumuKategorija_06[okt]) -> 975 | M16: =SUM(tabulaIzdevumuKategorija_06[nov]) -> 975 | N16: =SUM(tabulaIzdevumuKategorija_06[dec]) -> 975 | O16: =SUM(tabulaIzdevumuKategorija_06[gads]) -> 11,700 | P16: =SUM(tabulaIzdevumuKategorija_06[vid]) -> 975
B17: =LOWER(Budžets!B57) -> veselība | C17: =SUM(tabulaIzdevumuKategorija_05[jan]) -> 25 | D17: =SUM(tabulaIzdevumuKategorija_05[feb]) -> 60 | E17: =SUM(tabulaIzdevumuKategorija_05[mar]) -> 175 | F17: =SUM(tabulaIzdevumuKategorija_05[apr]) -> 25 | G17: =SUM(tabulaIzdevumuKategorija_05[mai]) -> 60 | H17: =SUM(tabulaIzdevumuKategorija_05[jūn]) -> 60 | I17: =SUM(tabulaIzdevumuKategorija_05[jūl]) -> 60 | J17: =SUM(tabulaIzdevumuKategorija_05[aug]) -> 25 | K17: =SUM(tabulaIzdevumuKategorija_05[sep]) -> 175 | L17: =SUM(tabulaIzdevumuKategorija_05[okt]) -> 60 | M17: =SUM(tabulaIzdevumuKategorija_05[nov]) -> 25 | N17: =SUM(tabulaIzdevumuKategorija_05[dec]) -> 25 | O17: =SUM(tabulaIzdevumuKategorija_05[gads]) -> 775 | P17: =SUM(tabulaIzdevumuKategorija_05[vid]) -> 65
B18: =LOWER(Budžets!B48) -> transports | C18: =SUM(tabulaIzdevumuKategorija_04[jan]) -> 1,110 | D18: =SUM(tabulaIzdevumuKategorija_04[feb]) -> 1,025 | E18: =SUM(tabulaIzdevumuKategorija_04[mar]) -> 925 | F18: =SUM(tabulaIzdevumuKategorija_04[apr]) -> 1,025 | G18: =SUM(tabulaIzdevumuKategorija_04[mai]) -> 1,325 | H18: =SUM(tabulaIzdevumuKategorija_04[jūn]) -> 1,200 | I18: =SUM(tabulaIzdevumuKategorija_04[jūl]) -> 1,100 | J18: =SUM(tabulaIzdevumuKategorija_04[aug]) -> 1,200 | K18: =SUM(tabulaIzdevumuKategorija_04[sep]) -> 1,150 | L18: =SUM(tabulaIzdevumuKategorija_04[okt]) -> 1,025 | M18: =SUM(tabulaIzdevumuKategorija_04[nov]) -> 925 | N18: =SUM(tabulaIzdevumuKategorija_04[dec]) -> 925 | O18: =SUM(tabulaIzdevumuKategorija_04[gads]) -> 12,935 | P18: =SUM(tabulaIzdevumuKategorija_04[vid]) -> 1,078
B19: =LOWER(Budžets!B39) -> bērni | C19: =SUM(tabulaIzdevumuKategorija_03[jan]) -> 2,373 | D19: =SUM(tabulaIzdevumuKategorija_03[feb]) -> 500 | E19: =SUM(tabulaIzdevumuKategorija_03[mar]) -> 350 | F19: =SUM(tabulaIzdevumuKategorija_03[apr]) -> 250 | G19: =SUM(tabulaIzdevumuKategorija_03[mai]) -> 350 | H19: =SUM(tabulaIzdevumuKategorija_03[jūn]) -> 450 | I19: =SUM(tabulaIzdevumuKategorija_03[jūl]) -> 200 | J19: =SUM(tabulaIzdevumuKategorija_03[aug]) -> 545 | K19: =SUM(tabulaIzdevumuKategorija_03[sep]) -> 350 | L19: =SUM(tabulaIzdevumuKategorija_03[okt]) -> 350 | M19: =SUM(tabulaIzdevumuKategorija_03[nov]) -> 250 | N19: =SUM(tabulaIzdevumuKategorija_03[dec]) -> 350 | O19: =SUM(tabulaIzdevumuKategorija_03[gads]) -> 6,318 | P19: =SUM(tabulaIzdevumuKategorija_03[vid]) -> 527
B20: =LOWER(Budžets!B30) -> ikdienas tēriņi | C20: =SUM(tabulaIzdevumuKategorija_02[jan]) -> 795 | D20: =SUM(tabulaIzdevumuKategorija_02[feb]) -> 375 | E20: =SUM(tabulaIzdevumuKategorija_02[mar]) -> 550 | F20: =SUM(tabulaIzdevumuKategorija_02[apr]) -> 825 | G20: =SUM(tabulaIzdevumuKategorija_02[mai]) -> 500 | H20: =SUM(tabulaIzdevumuKategorija_02[jūn]) -> 450 | I20: =SUM(tabulaIzdevumuKategorija_02[jūl]) -> 875 | J20: =SUM(tabulaIzdevumuKategorija_02[aug]) -> 475 | K20: =SUM(tabulaIzdevumuKategorija_02[sep]) -> 400 | L20: =SUM(tabulaIzdevumuKategorija_02[okt]) -> 825 | M20: =SUM(tabulaIzdevumuKategorija_02[nov]) -> 575 | N20: =SUM(tabulaIzdevumuKategorija_02[dec]) -> 375 | O20: =SUM(tabulaIzdevumuKategorija_02[gads]) -> 7,020 | P20: =SUM(tabulaIzdevumuKategorija_02[vid]) -> 585
B21: =LOWER(Budžets!B21) -> mājoklis | C21: =SUM(tabulaIzdevumuKategorija_01[jan]) -> 1,208 | D21: =SUM(tabulaIzdevumuKategorija_01[feb]) -> 1,208 | E21: =SUM(tabulaIzdevumuKategorija_01[mar]) -> 1,233 | F21: =SUM(tabulaIzdevumuKategorija_01[apr]) -> 1,208 | G21: =SUM(tabulaIzdevumuKategorija_01[mai]) -> 1,158 | H21: =SUM(tabulaIzdevumuKategorija_01[jūn]) -> 1,183 | I21: =SUM(tabulaIzdevumuKategorija_01[jūl]) -> 1,283 | J21: =SUM(tabulaIzdevumuKategorija_01[aug]) -> 1,333 | K21: =SUM(tabulaIzdevumuKategorija_01[sep]) -> 1,208 | L21: =SUM(tabulaIzdevumuKategorija_01[okt]) -> 1,158 | M21: =SUM(tabulaIzdevumuKategorija_01[nov]) -> 1,208 | N21: =SUM(tabulaIzdevumuKategorija_01[dec]) -> 1,208 | O21: =SUM(tabulaIzdevumuKategorija_01[gads]) -> 14,596 | P21: =SUM(tabulaIzdevumuKategorija_01[vid]) -> 1,216
B26: Kumulatīvā naudas plūsma | C26: =SUM(Budžets!$C$8:C$8) -> -3,714 | D26: =SUM(Budžets!$C$8:D$8) -> 76 | E26: =SUM(Budžets!$C$8:E$8) -> -1,857 | F26: =SUM(Budžets!$C$8:F$8) -> -3,670 | G26: =SUM(Budžets!$C$8:G$8) -> -138 | H26: =SUM(Budžets!$C$8:H$8) -> -3,731 | I26: =SUM(Budžets!$C$8:I$8) -> -7,974 | J26: =SUM(Budžets!$C$8:J$8) -> -6,827 | K26: =SUM(Budžets!$C$8:K$8) -> -8,810 | L26: =SUM(Budžets!$C$8:L$8) -> -10,753 | M26: =SUM(Budžets!$C$8:M$8) -> -6,811 | N26: =SUM(Budžets!$C$8:N$8) -> -7,769 | O26: =SUM(Budžets!$C$8:O$8) -> -15,538
B28: Gada naudas plūsma pozitīva | C28: =IF(Budžets!C$8<0,NA(),IF(Periods+2<>COLUMN(Budžets!C$8),NA(),Budžets!C$8)) ->  | D28: =IF(Budžets!D$8<0,NA(),IF(Periods+2<>COLUMN(Budžets!D$8),NA(),Budžets!D$8)) ->  | E28: =IF(Budžets!E$8<0,NA(),IF(Periods+2<>COLUMN(Budžets!E$8),NA(),Budžets!E$8)) ->  | F28: =IF(Budžets!F$8<0,NA(),IF(Periods+2<>COLUMN(Budžets!F$8),NA(),Budžets!F$8)) ->  | G28: =IF(Budžets!G$8<0,NA(),IF(Periods+2<>COLUMN(Budžets!G$8),NA(),Budžets!G$8)) ->  | H28: =IF(Budžets!H$8<0,NA(),IF(Periods+2<>COLUMN(Budžets!H$8),NA(),Budžets!H$8)) ->  | I28: =IF(Budžets!I$8<0,NA(),IF(Periods+2<>COLUMN(Budžets!I$8),NA(),Budžets!I$8)) ->  | J28: =IF(Budžets!J$8<0,NA(),IF(Periods+2<>COLUMN(Budžets!J$8),NA(),Budžets!J$8)) ->  | K28: =IF(Budžets!K$8<0,NA(),IF(Periods+2<>COLUMN(Budžets!K$8),NA(),Budžets!K$8)) ->  | L28: =IF(Budžets!L$8<0,NA(),IF(Periods+2<>COLUMN(Budžets!L$8),NA(),Budžets!L$8)) ->  | M28: =IF(Budžets!M$8<0,NA(),IF(Periods+2<>COLUMN(Budžets!M$8),NA(),Budžets!M$8)) ->  | N28: =IF(Budžets!N$8<0,NA(),IF(Periods+2<>COLUMN(Budžets!N$8),NA(),Budžets!N$8)) ->  | O28: =IF(Budžets!O$8<0,NA(),IF(Periods+2<>COLUMN(Budžets!O$8),NA(),Budžets!O$8)) -> 
B29: Gada naudas plūsma negatīva | C29: =IF(Budžets!C$8>=0,NA(),IF(Periods+2<>COLUMN(Budžets!C$8),NA(),Budžets!C$8)) -> -3,714 | D29: =IF(Budžets!D$8>=0,NA(),IF(Periods+2<>COLUMN(Budžets!D$8),NA(),Budžets!D$8)) ->  | E29: =IF(Budžets!E$8>=0,NA(),IF(Periods+2<>COLUMN(Budžets!E$8),NA(),Budžets!E$8)) ->  | F29: =IF(Budžets!F$8>=0,NA(),IF(Periods+2<>COLUMN(Budžets!F$8),NA(),Budžets!F$8)) ->  | G29: =IF(Budžets!G$8>=0,NA(),IF(Periods+2<>COLUMN(Budžets!G$8),NA(),Budžets!G$8)) ->  | H29: =IF(Budžets!H$8>=0,NA(),IF(Periods+2<>COLUMN(Budžets!H$8),NA(),Budžets!H$8)) ->  | I29: =IF(Budžets!I$8>=0,NA(),IF(Periods+2<>COLUMN(Budžets!I$8),NA(),Budžets!I$8)) ->  | J29: =IF(Budžets!J$8>=0,NA(),IF(Periods+2<>COLUMN(Budžets!J$8),NA(),Budžets!J$8)) ->  | K29: =IF(Budžets!K$8>=0,NA(),IF(Periods+2<>COLUMN(Budžets!K$8),NA(),Budžets!K$8)) ->  | L29: =IF(Budžets!L$8>=0,NA(),IF(Periods+2<>COLUMN(Budžets!L$8),NA(),Budžets!L$8)) ->  | M29: =IF(Budžets!M$8>=0,NA(),IF(Periods+2<>COLUMN(Budžets!M$8),NA(),Budžets!M$8)) ->  | N29: =IF(Budžets!N$8>=0,NA(),IF(Periods+2<>COLUMN(Budžets!N$8),NA(),Budžets!N$8)) ->  | O29: =IF(Budžets!O$8>=0,NA(),IF(Periods+2<>COLUMN(Budžets!O$8),NA(),Budžets!O$8)) -> 
B37: =LOWER(rādīt_ilgu_periodu) -> janvāris
B38: ="Ienākumi "& rādīt_ilgu_periodu -> Ienākumi janvāris | C38: =INDEX(Budžets!$C$6:$P$6,,Periods) -> 4,222 €
B39: ="Izdevumi " & rādīt_ilgu_periodu & ": Ls "& TEXT(INDEX(Budžets!$C$7:$P$7,,Periods),"# ##0") -> Izdevumi janvāris: Ls 7 936 | C39: =INDEX(Budžets!$C$7:$P$7,,Periods) -> 7,936 €
B40: ="Naudas plūsma " & rādīt_ilgu_periodu -> Naudas plūsma janvāris | C40: =ABS(INDEX(Budžets!$C$8:$P$8,,Periods)) -> 3,714 € | D40: =REPT("-",INDEX(Budžets!$C$8:$P$8,,Periods)<0) -> -
